[Event "Titled Tuesday Blitz May 2 Early 2023"]
[White "Suyarov, Mukhammadzokhid"]
[Black "Malek, Jan"]
[WhiteFideId "14210495"]
[BlackFideId "21864080"]
[WhiteElo "2361"]
[BlackElo "2255"]
[Result "1-0"]
[Round "07"]
[TimeControl "180+2"]
[Date "2023.05.03"]
[WhiteClock "0:00:00"]
[BlackClock "0:00:00"]

1. d4 {[%clk 0:00:01]}  f5 {[%clk 0:00:01]} 2. Bg5 {[%clk 0:00:01]}  d5 {[%clk 0:00:01]} 3. e3 {[%clk 0:00:01]}  Nf6 {[%clk 0:00:01]} 4. Bxf6 {[%clk 0:00:01]}  exf6 {[%clk 0:00:01]} 5. c4 {[%clk 0:00:01]}  c6 {[%clk 0:00:01]} 6. Nc3 {[%clk 0:00:01]}  Be6 {[%clk 0:00:01]} 7. cxd5 {[%clk 0:00:01]}  Bxd5 {[%clk 0:00:01]} 8. Nf3 {[%clk 0:00:01]}  Be6 {[%clk 0:00:01]} 9. Bd3 {[%clk 0:00:01]}  Bd6 {[%clk 0:00:01]} 10. O-O {[%clk 0:00:01]}  O-O {[%clk 0:00:01]} 11. Nd2 {[%clk 0:00:01]}  Nd7 {[%clk 0:00:01]} 12. Bc4 {[%clk 0:00:01]}  Qe7 {[%clk 0:00:01]} 13. Qb3 {[%clk 0:00:01]}  Rfe8 {[%clk 0:00:00]} 14. Qxb7 {[%clk 0:00:01]}  Rab8 {[%clk 0:00:00]} 15. Qxc6 {[%clk 0:00:01]}  Rec8 {[%clk 0:00:00]} 16. Bxe6+ {[%clk 0:00:01]}  Qxe6 {[%clk 0:00:00]} 17. Qd5 {[%clk 0:00:01]}  Qxd5 {[%clk 0:00:00]} 18. Nxd5 {[%clk 0:00:01]}  Rxb2 {[%clk 0:00:00]} 19. Nf3 {[%clk 0:00:01]}  Rcc2 {[%clk 0:00:00]} 20. a4 {[%clk 0:00:01]}  Kf7 {[%clk 0:00:00]} 21. Rac1 {[%clk 0:00:01]}  Ke6 {[%clk 0:00:00]} 22. Nc3 {[%clk 0:00:01]}  Nb6 {[%clk 0:00:00]} 23. a5 {[%clk 0:00:01]}  Nc4 {[%clk 0:00:00]} 24. a6 {[%clk 0:00:01]}  Bb4 {[%clk 0:00:00]} 25. Na4 {[%clk 0:00:01]}  Rxc1 {[%clk 0:00:00]} 26. Rxc1 {[%clk 0:00:00]}  Ra2 {[%clk 0:00:00]} 27. h4 {[%clk 0:00:00]}  Kd5 {[%clk 0:00:00]} 28. Nc5 {[%clk 0:00:00]}  Bxc5 {[%clk 0:00:00]} 29. dxc5 {[%clk 0:00:00]}  Rxa6 {[%clk 0:00:00]} 30. Nd4 {[%clk 0:00:00]}  g6 {[%clk 0:00:00]} 31. c6 {[%clk 0:00:00]}  Ra5 {[%clk 0:00:00]} 32. Rd1 {[%clk 0:00:00]}  Kd6 {[%clk 0:00:00]} 33. Rc1 {[%clk 0:00:00]}  Rc5 {[%clk 0:00:00]} 34. c7 {[%clk 0:00:00]}  Kxc7 {[%clk 0:00:00]} 35. Ne6+ {[%clk 0:00:00]}  Kd6 {[%clk 0:00:00]} 36. Nxc5 {[%clk 0:00:00]}  Kxc5 {[%clk 0:00:00]} 37. Rb1 {[%clk 0:00:00]}  a5 {[%clk 0:00:00]} 38. Ra1 {[%clk 0:00:00]}  Kb4 {[%clk 0:00:00]} 39. Kf1 {[%clk 0:00:00]}  a4 {[%clk 0:00:00]} 40. Ke2 {[%clk 0:00:00]} 1-0


[Site "https://www.chess.com"]

[Event "Titled Tuesday Blitz May 2 Early 2023"]
[White "Siva Mahadevan"]
[Black "Mendez Fortes, Eduardo Jesus"]
[WhiteFideId "25043153"]
[BlackFideId "3502376"]
[WhiteElo "2249"]
[BlackElo "2307"]
[Result "1-0"]
[Round "07"]
[TimeControl "180+2"]
[Date "2023.05.03"]
[WhiteClock "0:00:00"]
[BlackClock "0:00:00"]

1. e4 {[%clk 0:00:01]}  c5 {[%clk 0:00:01]} 2. Nf3 {[%clk 0:00:01]}  d6 {[%clk 0:00:01]} 3. d4 {[%clk 0:00:01]}  cxd4 {[%clk 0:00:01]} 4. Nxd4 {[%clk 0:00:01]}  Nf6 {[%clk 0:00:01]} 5. Nc3 {[%clk 0:00:01]}  a6 {[%clk 0:00:01]} 6. Bg5 {[%clk 0:00:01]}  Nbd7 {[%clk 0:00:01]} 7. Qe2 {[%clk 0:00:01]}  h6 {[%clk 0:00:01]} 8. Bh4 {[%clk 0:00:01]}  g6 {[%clk 0:00:01]} 9. f4 {[%clk 0:00:01]}  e5 {[%clk 0:00:01]} 10. fxe5 {[%clk 0:00:01]}  dxe5 {[%clk 0:00:01]} 11. O-O-O {[%clk 0:00:01]}  Qc7 {[%clk 0:00:01]} 12. Nb3 {[%clk 0:00:01]}  b5 {[%clk 0:00:01]} 13. Rxd7 {[%clk 0:00:01]}  Nxd7 {[%clk 0:00:01]} 14. Nd5 {[%clk 0:00:01]}  Qb8 {[%clk 0:00:01]} 15. Na5 {[%clk 0:00:01]}  Bb7 {[%clk 0:00:01]} 16. Qd3 {[%clk 0:00:01]}  Bc5 {[%clk 0:00:01]} 17. Be2 {[%clk 0:00:01]}  O-O {[%clk 0:00:01]} 18. Bg4 {[%clk 0:00:00]}  Nb6 {[%clk 0:00:00]} 19. Ne7+ {[%clk 0:00:00]}  Kg7 {[%clk 0:00:00]} 20. Rf1 {[%clk 0:00:00]}  Nc4 {[%clk 0:00:00]} 21. Bf6+ {[%clk 0:00:00]}  Kh7 {[%clk 0:00:00]} 22. Nxc4 {[%clk 0:00:00]}  bxc4 {[%clk 0:00:00]} 23. Qh3 {[%clk 0:00:00]}  Qa7 {[%clk 0:00:00]} 24. Bg5 {[%clk 0:00:00]}  h5 {[%clk 0:00:00]} 25. Bxh5 {[%clk 0:00:00]}  Rh8 {[%clk 0:00:00]} 26. Rxf7# {[%clk 0:00:00]} 1-0


[Site "https://www.chess.com"]

[Event "Titled Tuesday Blitz May 2 Early 2023"]
[White "Girya, Olga"]
[Black "Xu, Yi"]
[WhiteFideId "4195752"]
[BlackFideId "8605564"]
[WhiteElo "2263"]
[BlackElo "2471"]
[Result "0-1"]
[Round "07"]
[TimeControl "180+2"]
[Date "2023.05.03"]
[WhiteClock "0:00:00"]
[BlackClock "0:00:00"]

1. d4 {[%clk 0:00:01]}  Nf6 {[%clk 0:00:01]} 2. Nf3 {[%clk 0:00:01]}  d5 {[%clk 0:00:01]} 3. c4 {[%clk 0:00:01]}  e6 {[%clk 0:00:01]} 4. Nc3 {[%clk 0:00:01]}  Bb4 {[%clk 0:00:01]} 5. Qb3 {[%clk 0:00:01]}  c5 {[%clk 0:00:01]} 6. dxc5 {[%clk 0:00:01]}  Nc6 {[%clk 0:00:01]} 7. Bg5 {[%clk 0:00:01]}  Qa5 {[%clk 0:00:01]} 8. Bxf6 {[%clk 0:00:01]}  dxc4 {[%clk 0:00:01]} 9. Qxc4 {[%clk 0:00:01]}  gxf6 {[%clk 0:00:01]} 10. Rc1 {[%clk 0:00:01]}  Qxc5 {[%clk 0:00:01]} 11. Qh4 {[%clk 0:00:01]}  Ke7 {[%clk 0:00:01]} 12. g3 {[%clk 0:00:00]}  Bxc3+ {[%clk 0:00:01]} 13. Rxc3 {[%clk 0:00:00]}  Qb4 {[%clk 0:00:01]} 14. Qxb4+ {[%clk 0:00:00]}  Nxb4 {[%clk 0:00:01]} 15. e4 {[%clk 0:00:00]}  Nxa2 {[%clk 0:00:01]} 16. Rc7+ {[%clk 0:00:00]}  Bd7 {[%clk 0:00:01]} 17. Bb5 {[%clk 0:00:00]}  Rhd8 {[%clk 0:00:01]} 18. Rxb7 {[%clk 0:00:00]}  Rab8 {[%clk 0:00:01]} 19. Rxa7 {[%clk 0:00:00]}  Rxb5 {[%clk 0:00:01]} 20. Rxa2 {[%clk 0:00:00]}  Bc6 {[%clk 0:00:01]} 21. Nd2 {[%clk 0:00:00]}  f5 {[%clk 0:00:01]} 22. f3 {[%clk 0:00:00]}  fxe4 {[%clk 0:00:00]} 23. Nxe4 {[%clk 0:00:00]}  Rdb8 {[%clk 0:00:00]} 24. Nc3 {[%clk 0:00:00]}  Rxb2 {[%clk 0:00:00]} 25. Rxb2 {[%clk 0:00:00]}  Rxb2 {[%clk 0:00:00]} 26. O-O {[%clk 0:00:00]}  f5 {[%clk 0:00:00]} 27. f4 {[%clk 0:00:00]}  Rg2+ {[%clk 0:00:00]} 0-1


[Site "https://www.chess.com"]

[Event "Titled Tuesday Blitz May 2 Early 2023"]
[White "Soham Kamotra"]
[Black "Gabrielian, Artur"]
[WhiteFideId "46647490"]
[BlackFideId "4131002"]
[WhiteElo "2209"]
[BlackElo "2432"]
[Result "1-0"]
[Round "07"]
[TimeControl "180+2"]
[Date "2023.05.03"]
[WhiteClock "0:00:00"]
[BlackClock "0:00:00"]

1. d4 {[%clk 0:00:01]}  Nf6 {[%clk 0:00:01]} 2. Nf3 {[%clk 0:00:01]}  g6 {[%clk 0:00:01]} 3. Nc3 {[%clk 0:00:01]}  Bg7 {[%clk 0:00:01]} 4. e4 {[%clk 0:00:01]}  d6 {[%clk 0:00:01]} 5. Be2 {[%clk 0:00:01]}  O-O {[%clk 0:00:01]} 6. O-O {[%clk 0:00:01]}  a6 {[%clk 0:00:01]} 7. a4 {[%clk 0:00:01]}  Nc6 {[%clk 0:00:01]} 8. h3 {[%clk 0:00:01]}  e5 {[%clk 0:00:01]} 9. dxe5 {[%clk 0:00:01]}  dxe5 {[%clk 0:00:01]} 10. Bg5 {[%clk 0:00:01]}  h6 {[%clk 0:00:01]} 11. Qxd8 {[%clk 0:00:01]}  Rxd8 {[%clk 0:00:01]} 12. Bxf6 {[%clk 0:00:01]}  Bxf6 {[%clk 0:00:01]} 13. Nd5 {[%clk 0:00:01]}  Kg7 {[%clk 0:00:01]} 14. Nxc7 {[%clk 0:00:01]}  Rb8 {[%clk 0:00:01]} 15. Nd5 {[%clk 0:00:01]}  Be6 {[%clk 0:00:01]} 16. Rfd1 {[%clk 0:00:01]}  Bxd5 {[%clk 0:00:01]} 17. exd5 {[%clk 0:00:01]}  Nb4 {[%clk 0:00:01]} 18. c4 {[%clk 0:00:01]}  e4 {[%clk 0:00:01]} 19. Nd2 {[%clk 0:00:01]}  e3 {[%clk 0:00:01]} 20. fxe3 {[%clk 0:00:01]}  Nc2 {[%clk 0:00:01]} 21. Rab1 {[%clk 0:00:01]}  Nxe3 {[%clk 0:00:01]} 22. Re1 {[%clk 0:00:00]}  b5 {[%clk 0:00:01]} 23. cxb5 {[%clk 0:00:00]}  axb5 {[%clk 0:00:01]} 24. Bxb5 {[%clk 0:00:00]}  Nxd5 {[%clk 0:00:01]} 25. Ne4 {[%clk 0:00:00]}  Bd4+ {[%clk 0:00:01]} 26. Kh1 {[%clk 0:00:00]}  Nb4 {[%clk 0:00:01]} 27. b3 {[%clk 0:00:00]}  f5 {[%clk 0:00:00]} 28. Rbd1 {[%clk 0:00:00]}  fxe4 {[%clk 0:00:00]} 29. Rxe4 {[%clk 0:00:00]}  Bc5 {[%clk 0:00:00]} 30. Rc1 {[%clk 0:00:00]}  Bd6 {[%clk 0:00:00]} 31. Rd1 {[%clk 0:00:00]}  Bg3 {[%clk 0:00:00]} 32. Rf1 {[%clk 0:00:00]}  Nd5 {[%clk 0:00:00]} 33. Rf3 {[%clk 0:00:00]}  Bd6 {[%clk 0:00:00]} 34. Rd4 {[%clk 0:00:00]}  Nf6 {[%clk 0:00:00]} 35. Rfd3 {[%clk 0:00:00]}  Bc7 {[%clk 0:00:00]} 36. Rxd8 {[%clk 0:00:00]}  Rxd8 {[%clk 0:00:00]} 37. Rxd8 {[%clk 0:00:00]}  Bxd8 {[%clk 0:00:00]} 38. Bc4 {[%clk 0:00:00]}  Ba5 {[%clk 0:00:00]} 39. g3 {[%clk 0:00:00]}  Kf8 {[%clk 0:00:00]} 40. Kg2 {[%clk 0:00:00]}  Ke7 {[%clk 0:00:00]} 41. Kf3 {[%clk 0:00:00]}  Kd6 {[%clk 0:00:00]} 42. Kf4 {[%clk 0:00:00]}  Bd2+ {[%clk 0:00:00]} 43. Kf3 {[%clk 0:00:00]}  Ke5 {[%clk 0:00:00]} 44. Bf7 {[%clk 0:00:00]}  g5 {[%clk 0:00:00]} 45. Bc4 {[%clk 0:00:00]}  Bb4 {[%clk 0:00:00]} 46. g4 {[%clk 0:00:00]}  Ne4 {[%clk 0:00:00]} 47. Bg8 {[%clk 0:00:00]}  Nc5 {[%clk 0:00:00]} 48. Ke3 {[%clk 0:00:00]}  Ba5 {[%clk 0:00:00]} 49. Kf3 {[%clk 0:00:00]}  Kd4 {[%clk 0:00:00]} 50. Bc4 {[%clk 0:00:00]}  Ne4 {[%clk 0:00:00]} 51. Bg8 {[%clk 0:00:00]}  Nc3 {[%clk 0:00:00]} 52. Bf7 {[%clk 0:00:00]}  Bb4 {[%clk 0:00:00]} 53. Bg8 {[%clk 0:00:00]}  Ne4 {[%clk 0:00:00]} 54. Bf7 {[%clk 0:00:00]}  Nd2+ {[%clk 0:00:00]} 55. Ke2 {[%clk 0:00:00]}  Nb1 {[%clk 0:00:00]} 56. Bg8 {[%clk 0:00:00]}  Nc3+ {[%clk 0:00:00]} 57. Kf3 {[%clk 0:00:00]}  Bc5 {[%clk 0:00:00]} 58. Bf7 {[%clk 0:00:00]}  Bb6 {[%clk 0:00:00]} 59. Bc4 {[%clk 0:00:00]}  Nxa4 {[%clk 0:00:00]} 60. bxa4 {[%clk 0:00:00]}  Kxc4 {[%clk 0:00:00]} 61. Ke4 {[%clk 0:00:00]}  Kb4 {[%clk 0:00:00]} 62. Kf5 {[%clk 0:00:00]}  Kxa4 {[%clk 0:00:00]} 63. Kg6 {[%clk 0:00:00]} 1-0


[Site "https://www.chess.com"]

[Event "Titled Tuesday Blitz May 2 Early 2023"]
[White "Vakhlamov, Igor L."]
[Black "Novik, Maxim"]
[WhiteFideId "24126748"]
[BlackFideId "4102924"]
[WhiteElo "2400"]
[BlackElo "2287"]
[Result "0-1"]
[Round "07"]
[TimeControl "180+2"]
[Date "2023.05.03"]
[WhiteClock "0:00:00"]
[BlackClock "0:00:00"]

1. e4 {[%clk 0:00:01]}  c6 {[%clk 0:00:01]} 2. d4 {[%clk 0:00:01]}  d5 {[%clk 0:00:01]} 3. exd5 {[%clk 0:00:01]}  cxd5 {[%clk 0:00:01]} 4. c4 {[%clk 0:00:01]}  Nf6 {[%clk 0:00:01]} 5. Nc3 {[%clk 0:00:01]}  g6 {[%clk 0:00:01]} 6. cxd5 {[%clk 0:00:01]}  Nxd5 {[%clk 0:00:01]} 7. Qb3 {[%clk 0:00:01]}  Nxc3 {[%clk 0:00:01]} 8. Bc4 {[%clk 0:00:01]}  e6 {[%clk 0:00:01]} 9. bxc3 {[%clk 0:00:01]}  Bg7 {[%clk 0:00:01]} 10. Bb5+ {[%clk 0:00:01]}  Bd7 {[%clk 0:00:01]} 11. Nf3 {[%clk 0:00:01]}  O-O {[%clk 0:00:01]} 12. O-O {[%clk 0:00:01]}  Nc6 {[%clk 0:00:01]} 13. Bd3 {[%clk 0:00:01]}  Qc7 {[%clk 0:00:01]} 14. Bd2 {[%clk 0:00:01]}  Rac8 {[%clk 0:00:01]} 15. Rfe1 {[%clk 0:00:01]}  Na5 {[%clk 0:00:01]} 16. Qa3 {[%clk 0:00:01]}  b6 {[%clk 0:00:01]} 17. h4 {[%clk 0:00:01]}  Bc6 {[%clk 0:00:01]} 18. Ne5 {[%clk 0:00:01]}  Bd5 {[%clk 0:00:01]} 19. h5 {[%clk 0:00:01]}  Nc6 {[%clk 0:00:01]} 20. Ng4 {[%clk 0:00:01]}  Ne7 {[%clk 0:00:01]} 21. h6 {[%clk 0:00:01]}  Bh8 {[%clk 0:00:01]} 22. Rac1 {[%clk 0:00:01]}  Nf5 {[%clk 0:00:01]} 23. c4 {[%clk 0:00:00]}  Ba8 {[%clk 0:00:01]} 24. Bxf5 {[%clk 0:00:00]}  gxf5 {[%clk 0:00:01]} 25. Ne5 {[%clk 0:00:00]}  Bxe5 {[%clk 0:00:01]} 26. dxe5 {[%clk 0:00:00]}  f6 {[%clk 0:00:00]} 27. Rc3 {[%clk 0:00:00]}  Kf7 {[%clk 0:00:00]} 28. Rg3 {[%clk 0:00:00]}  Rg8 {[%clk 0:00:00]} 29. exf6 {[%clk 0:00:00]}  Rxg3 {[%clk 0:00:00]} 30. fxg3 {[%clk 0:00:00]}  Qc5+ {[%clk 0:00:00]} 31. Qxc5 {[%clk 0:00:00]}  Rxc5 {[%clk 0:00:00]} 32. Rd1 {[%clk 0:00:00]}  Rxc4 {[%clk 0:00:00]} 33. Bg5 {[%clk 0:00:00]}  Bd5 {[%clk 0:00:00]} 34. a3 {[%clk 0:00:00]}  b5 {[%clk 0:00:00]} 35. Rb1 {[%clk 0:00:00]}  a6 {[%clk 0:00:00]} 36. Rb4 {[%clk 0:00:00]}  Rc3 {[%clk 0:00:00]} 37. a4 {[%clk 0:00:00]}  Rxg3 {[%clk 0:00:00]} 38. Bh4 {[%clk 0:00:00]}  Rxg2+ {[%clk 0:00:00]} 39. Kf1 {[%clk 0:00:00]}  Rg4 {[%clk 0:00:00]} 40. Rxg4 {[%clk 0:00:00]}  fxg4 {[%clk 0:00:00]} 41. axb5 {[%clk 0:00:00]}  axb5 {[%clk 0:00:00]} 42. Kf2 {[%clk 0:00:00]}  b4 {[%clk 0:00:00]} 43. Kg3 {[%clk 0:00:00]}  b3 {[%clk 0:00:00]} 0-1


[Site "https://www.chess.com"]

[Event "Titled Tuesday Blitz May 2 Early 2023"]
[White "Alinasab, Mobina"]
[Black "Papasimakopoulos, Alexandros"]
[WhiteFideId "12528897"]
[BlackFideId "4244125"]
[WhiteElo "2149"]
[BlackElo "2359"]
[Result "1/2-1/2"]
[Round "07"]
[TimeControl "180+2"]
[Date "2023.05.03"]
[WhiteClock "0:00:00"]
[BlackClock "0:00:00"]

1. Nf3 {[%clk 0:00:01]}  d5 {[%clk 0:00:01]} 2. g3 {[%clk 0:00:01]}  Nf6 {[%clk 0:00:01]} 3. Bg2 {[%clk 0:00:01]}  c6 {[%clk 0:00:01]} 4. O-O {[%clk 0:00:01]}  Bg4 {[%clk 0:00:01]} 5. Ne5 {[%clk 0:00:01]}  Bh5 {[%clk 0:00:01]} 6. b3 {[%clk 0:00:01]}  Nbd7 {[%clk 0:00:01]} 7. d4 {[%clk 0:00:01]}  e6 {[%clk 0:00:01]} 8. Bb2 {[%clk 0:00:01]}  Be7 {[%clk 0:00:01]} 9. Nd2 {[%clk 0:00:01]}  O-O {[%clk 0:00:01]} 10. c4 {[%clk 0:00:01]}  a5 {[%clk 0:00:01]} 11. a3 {[%clk 0:00:01]}  a4 {[%clk 0:00:01]} 12. b4 {[%clk 0:00:01]}  Nxe5 {[%clk 0:00:01]} 13. dxe5 {[%clk 0:00:01]}  Nd7 {[%clk 0:00:01]} 14. Kh1 {[%clk 0:00:01]}  Qb8 {[%clk 0:00:01]} 15. f4 {[%clk 0:00:01]}  f6 {[%clk 0:00:01]} 16. cxd5 {[%clk 0:00:01]}  cxd5 {[%clk 0:00:00]} 17. Bh3 {[%clk 0:00:00]}  f5 {[%clk 0:00:00]} 18. Bd4 {[%clk 0:00:00]}  b5 {[%clk 0:00:00]} 19. Nf3 {[%clk 0:00:00]}  Nb6 {[%clk 0:00:00]} 20. Bxb6 {[%clk 0:00:00]}  Qxb6 {[%clk 0:00:00]} 21. Nd4 {[%clk 0:00:00]}  Rac8 {[%clk 0:00:00]} 22. Bg2 {[%clk 0:00:00]}  Rc4 {[%clk 0:00:00]} 23. Nxe6 {[%clk 0:00:00]}  Bf7 {[%clk 0:00:00]} 24. Nxf8 {[%clk 0:00:00]}  Kxf8 {[%clk 0:00:00]} 25. Qd2 {[%clk 0:00:00]}  Be6 {[%clk 0:00:00]} 26. Rfd1 {[%clk 0:00:00]}  d4 {[%clk 0:00:00]} 27. Rac1 {[%clk 0:00:00]}  Rc3 {[%clk 0:00:00]} 28. Rxc3 {[%clk 0:00:00]}  dxc3 {[%clk 0:00:00]} 29. Qxc3 {[%clk 0:00:00]}  Qf2 {[%clk 0:00:00]} 30. Qf3 {[%clk 0:00:00]}  Qb6 {[%clk 0:00:00]} 31. Qa8+ {[%clk 0:00:00]}  Kf7 {[%clk 0:00:00]} 32. Bd5 {[%clk 0:00:00]}  Bxd5+ {[%clk 0:00:00]} 33. Qxd5+ {[%clk 0:00:00]}  Kf8 {[%clk 0:00:00]} 34. e6 {[%clk 0:00:00]}  g6 {[%clk 0:00:00]} 35. Kg2 {[%clk 0:00:00]}  Qe3 {[%clk 0:00:00]} 36. Rd2 {[%clk 0:00:00]}  Kg8 {[%clk 0:00:00]} 37. Kf1 {[%clk 0:00:00]}  Qxa3 {[%clk 0:00:00]} 38. Qd7 {[%clk 0:00:00]}  Qxb4 {[%clk 0:00:00]} 39. Rd4 {[%clk 0:00:00]}  Qc5 {[%clk 0:00:00]} 40. Qe8+ {[%clk 0:00:00]}  Kg7 {[%clk 0:00:00]} 41. Qf7+ {[%clk 0:00:00]}  Kh6 {[%clk 0:00:00]} 42. Rd7 {[%clk 0:00:00]}  Qc1+ {[%clk 0:00:00]} 43. Kg2 {[%clk 0:00:00]}  Qe3 {[%clk 0:00:00]} 44. Rxe7 {[%clk 0:00:00]}  Qxe2+ {[%clk 0:00:00]} 45. Kg1 {[%clk 0:00:00]}  Qe1+ {[%clk 0:00:00]} 46. Kg2 {[%clk 0:00:00]}  Qe2+ {[%clk 0:00:00]} 47. Kg1 {[%clk 0:00:00]}  Qe1+ {[%clk 0:00:00]} 48. Kg2 {[%clk 0:00:00]}  Qe2+ {[%clk 0:00:00]} 1/2-1/2


[Site "https://www.chess.com"]

[Event "Titled Tuesday Blitz May 2 Early 2023"]
[White "Karamsetty, Jeevan"]
[Black "Weetik, Vjacheslav"]
[WhiteFideId "2025337"]
[BlackFideId "4153472"]
[WhiteElo "2111"]
[BlackElo "2469"]
[Result "0-1"]
[Round "07"]
[TimeControl "180+2"]
[Date "2023.05.03"]
[WhiteClock "0:00:00"]
[BlackClock "0:00:00"]

1. e4 {[%clk 0:00:01]}  c6 {[%clk 0:00:01]} 2. d4 {[%clk 0:00:01]}  d5 {[%clk 0:00:01]} 3. exd5 {[%clk 0:00:01]}  cxd5 {[%clk 0:00:01]} 4. Bd3 {[%clk 0:00:01]}  Nc6 {[%clk 0:00:01]} 5. c3 {[%clk 0:00:01]}  g6 {[%clk 0:00:01]} 6. Ne2 {[%clk 0:00:01]}  Bf5 {[%clk 0:00:01]} 7. O-O {[%clk 0:00:01]}  Bxd3 {[%clk 0:00:01]} 8. Qxd3 {[%clk 0:00:01]}  Bg7 {[%clk 0:00:01]} 9. f4 {[%clk 0:00:01]}  Nh6 {[%clk 0:00:01]} 10. Ng3 {[%clk 0:00:01]}  e6 {[%clk 0:00:01]} 11. Nd2 {[%clk 0:00:01]}  O-O {[%clk 0:00:01]} 12. Nf3 {[%clk 0:00:01]}  f6 {[%clk 0:00:01]} 13. Bd2 {[%clk 0:00:01]}  Qd7 {[%clk 0:00:01]} 14. Rae1 {[%clk 0:00:01]}  Rae8 {[%clk 0:00:01]} 15. Rf2 {[%clk 0:00:01]}  Nf7 {[%clk 0:00:01]} 16. Rfe2 {[%clk 0:00:01]}  Nd6 {[%clk 0:00:01]} 17. b3 {[%clk 0:00:01]}  b5 {[%clk 0:00:01]} 18. Bc1 {[%clk 0:00:00]}  a5 {[%clk 0:00:00]} 19. h4 {[%clk 0:00:00]}  b4 {[%clk 0:00:00]} 20. h5 {[%clk 0:00:00]}  f5 {[%clk 0:00:00]} 21. Ne5 {[%clk 0:00:00]}  Nxe5 {[%clk 0:00:00]} 22. fxe5 {[%clk 0:00:00]}  Ne4 {[%clk 0:00:00]} 23. cxb4 {[%clk 0:00:00]}  axb4 {[%clk 0:00:00]} 24. Bd2 {[%clk 0:00:00]}  Nxd2 {[%clk 0:00:00]} 25. Rxd2 {[%clk 0:00:00]}  f4 {[%clk 0:00:00]} 26. hxg6 {[%clk 0:00:00]}  fxg3 {[%clk 0:00:00]} 27. gxh7+ {[%clk 0:00:00]}  Kh8 {[%clk 0:00:00]} 28. Qxg3 {[%clk 0:00:00]}  Bh6 {[%clk 0:00:00]} 29. Rc2 {[%clk 0:00:00]}  Qxh7 {[%clk 0:00:00]} 30. Qh3 {[%clk 0:00:00]}  Qxc2 {[%clk 0:00:00]} 31. Qxh6+ {[%clk 0:00:00]}  Qh7 {[%clk 0:00:00]} 32. Qd2 {[%clk 0:00:00]}  Rf5 {[%clk 0:00:00]} 33. Re3 {[%clk 0:00:00]}  Rg8 {[%clk 0:00:00]} 34. Qe2 {[%clk 0:00:00]}  Qh4 {[%clk 0:00:00]} 35. Qd3 {[%clk 0:00:00]}  Qf2+ {[%clk 0:00:00]} 36. Kh2 {[%clk 0:00:00]}  Qxg2# {[%clk 0:00:00]} 0-1


[Site "https://www.chess.com"]

[Event "Titled Tuesday Blitz May 2 Early 2023"]
[White "Bolourchifard, Farzad"]
[Black "Manukyan, Artyom"]
[WhiteFideId "12510084"]
[BlackFideId "13305786"]
[WhiteElo "2317"]
[BlackElo "2078"]
[Result "1-0"]
[Round "07"]
[TimeControl "180+2"]
[Date "2023.05.03"]
[WhiteClock "0:00:00"]
[BlackClock "0:00:00"]

1. d4 {[%clk 0:00:01]}  d5 {[%clk 0:00:00]} 2. Nf3 {[%clk 0:00:01]}  Nf6 {[%clk 0:00:00]} 3. c4 {[%clk 0:00:01]}  e6 {[%clk 0:00:00]} 4. Nc3 {[%clk 0:00:01]}  c5 {[%clk 0:00:00]} 5. cxd5 {[%clk 0:00:01]}  Nxd5 {[%clk 0:00:00]} 6. e4 {[%clk 0:00:01]}  Nxc3 {[%clk 0:00:00]} 7. bxc3 {[%clk 0:00:01]}  cxd4 {[%clk 0:00:00]} 8. cxd4 {[%clk 0:00:01]}  Bb4+ {[%clk 0:00:00]} 9. Bd2 {[%clk 0:00:01]}  Bxd2+ {[%clk 0:00:00]} 10. Qxd2 {[%clk 0:00:01]}  O-O {[%clk 0:00:00]} 11. Be2 {[%clk 0:00:01]}  b6 {[%clk 0:00:00]} 12. O-O {[%clk 0:00:01]}  Bb7 {[%clk 0:00:00]} 13. Qe3 {[%clk 0:00:01]}  Nd7 {[%clk 0:00:00]} 14. a4 {[%clk 0:00:01]}  Nf6 {[%clk 0:00:00]} 15. Bd3 {[%clk 0:00:01]}  Rc8 {[%clk 0:00:00]} 16. h3 {[%clk 0:00:01]}  Qe7 {[%clk 0:00:00]} 17. a5 {[%clk 0:00:01]}  Rfd8 {[%clk 0:00:00]} 18. Rfb1 {[%clk 0:00:01]}  Qc7 {[%clk 0:00:00]} 19. e5 {[%clk 0:00:01]}  Nd5 {[%clk 0:00:00]} 20. Qe4 {[%clk 0:00:01]}  g6 {[%clk 0:00:00]} 21. Qh4 {[%clk 0:00:01]}  Qe7 {[%clk 0:00:00]} 22. Ng5 {[%clk 0:00:01]}  h5 {[%clk 0:00:00]} 23. axb6 {[%clk 0:00:00]}  axb6 {[%clk 0:00:00]} 24. Ra7 {[%clk 0:00:00]}  Ra8 {[%clk 0:00:00]} 25. Rba1 {[%clk 0:00:00]}  Rxa7 {[%clk 0:00:00]} 26. Rxa7 {[%clk 0:00:00]}  Ra8 {[%clk 0:00:00]} 27. Rxa8+ {[%clk 0:00:00]}  Bxa8 {[%clk 0:00:00]} 28. g4 {[%clk 0:00:00]}  Nf4 {[%clk 0:00:00]} 29. Bf1 {[%clk 0:00:00]}  Qb7 {[%clk 0:00:00]} 30. f3 {[%clk 0:00:00]}  Qd5 {[%clk 0:00:00]} 31. Qf2 {[%clk 0:00:00]}  hxg4 {[%clk 0:00:00]} 32. hxg4 {[%clk 0:00:00]}  Qb3 {[%clk 0:00:00]} 33. Qd2 {[%clk 0:00:00]}  Nd5 {[%clk 0:00:00]} 34. Ne4 {[%clk 0:00:00]}  Qb1 {[%clk 0:00:00]} 35. Qg5 {[%clk 0:00:00]}  Qa1 {[%clk 0:00:00]} 36. Qd2 {[%clk 0:00:00]}  b5 {[%clk 0:00:00]} 37. Kf2 {[%clk 0:00:00]}  b4 {[%clk 0:00:00]} 38. Nf6+ {[%clk 0:00:00]}  Nxf6 {[%clk 0:00:00]} 39. exf6 {[%clk 0:00:00]}  b3 {[%clk 0:00:00]} 40. Qb4 {[%clk 0:00:00]} 1-0


[Site "https://www.chess.com"]

[Event "Titled Tuesday Blitz May 2 Early 2023"]
[White "Quesada Perez, Yuniesky"]
[Black "Pham, Khoi"]
[WhiteFideId "3504409"]
[BlackFideId "1054988"]
[WhiteElo "2585"]
[BlackElo "2355"]
[Result "0-1"]
[Round "07"]
[TimeControl "180+2"]
[Date "2023.05.03"]
[WhiteClock "0:00:00"]
[BlackClock "0:00:00"]

1. e4 {[%clk 0:00:01]}  c6 {[%clk 0:00:01]} 2. d4 {[%clk 0:00:01]}  d5 {[%clk 0:00:01]} 3. e5 {[%clk 0:00:01]}  c5 {[%clk 0:00:01]} 4. dxc5 {[%clk 0:00:01]}  e6 {[%clk 0:00:01]} 5. Qg4 {[%clk 0:00:01]}  Nc6 {[%clk 0:00:01]} 6. Nf3 {[%clk 0:00:01]}  h5 {[%clk 0:00:01]} 7. Qg3 {[%clk 0:00:01]}  h4 {[%clk 0:00:01]} 8. Qf4 {[%clk 0:00:01]}  Nh6 {[%clk 0:00:01]} 9. Bd3 {[%clk 0:00:01]}  Bxc5 {[%clk 0:00:01]} 10. O-O {[%clk 0:00:01]}  f5 {[%clk 0:00:01]} 11. c4 {[%clk 0:00:01]}  h3 {[%clk 0:00:01]} 12. cxd5 {[%clk 0:00:01]}  hxg2 {[%clk 0:00:01]} 13. Rd1 {[%clk 0:00:01]}  Ng4 {[%clk 0:00:01]} 14. Be3 {[%clk 0:00:00]}  Bxe3 {[%clk 0:00:01]} 15. fxe3 {[%clk 0:00:00]}  Qxd5 {[%clk 0:00:01]} 16. Nc3 {[%clk 0:00:00]}  Qc5 {[%clk 0:00:01]} 17. Bb5 {[%clk 0:00:00]}  Bd7 {[%clk 0:00:00]} 18. Rd3 {[%clk 0:00:00]}  O-O-O {[%clk 0:00:00]} 19. Rc1 {[%clk 0:00:00]}  g5 {[%clk 0:00:00]} 20. Qa4 {[%clk 0:00:00]}  Ngxe5 {[%clk 0:00:00]} 21. Ne2 {[%clk 0:00:00]}  Nxf3+ {[%clk 0:00:00]} 22. Kxg2 {[%clk 0:00:00]}  Rxh2+ {[%clk 0:00:00]} 23. Kxf3 {[%clk 0:00:00]}  g4+ {[%clk 0:00:00]} 24. Kg3 {[%clk 0:00:00]}  Qe5+ {[%clk 0:00:00]} 25. Nf4 {[%clk 0:00:00]}  Rdh8 {[%clk 0:00:00]} 0-1


[Site "https://www.chess.com"]